fUSD/lending_fUSD_20250503
["ID","MTS","AMOUNT","RATE_DAILY","PERIOD"]
[359763065,1746309039892,-555.09592661,0.00019585,2]
[359763067,1746309039902,-500.0,0.00019585,2]
[359763069,1746309039911,-500.0,0.00019585,2]
[359763076,1746309039967,-500.0,0.00019585,2]
[359763078,1746309039977,-500.0,0.00019585,2]
[359763080,1746309039987,-500.0,0.00019585,2]
[359763082,1746309039997,-500.0,0.00019585,2]
[359763084,1746309040006,-500.0,0.00019585,2]
[359763086,1746309040016,-576.27,0.00019585,2]
[359763088,1746309040026,-500.0,0.00019585,2]
[359763090,1746309040036,-500.0,0.00019585,2]
[359763092,1746309040045,-500.0,0.00019585,2]
[359763094,1746309040054,-500.0,0.00019585,2]
[359763096,1746309040064,-500.0,0.00019585,2]
[359763098,1746309040073,-500.0,0.00019585,2]
[359763100,1746309040082,-300.68566967,0.00019585,2]
[359763102,1746309040092,-468.85926047,0.00019586,2]
[359763104,1746309040103,-450.0,0.00019586,2]
[359763106,1746309040112,-450.0,0.00019586,2]
[359763108,1746309040122,-612.39,0.00019586,2]
[359763110,1746309040131,-456.89,0.00019586,2]
[359763112,1746309040141,-450.0,0.00019586,2]
[359763114,1746309040151,-458.93,0.00019586,2]
[359763116,1746309040160,-176.75627171,0.00019586,2]
[359763118,1746309040170,-450.0,0.00019586,2]
[359763121,1746309040179,-450.0,0.00019586,2]
[359763123,1746309040189,-450.0,0.00019586,2]
[359763125,1746309040199,-450.0,0.00019586,2]
[359763127,1746309040208,-450.0,0.00019586,2]
[359763129,1746309040218,-450.0,0.00019586,2]
[359763131,1746309040228,-450.0,0.00019586,2]
[359763133,1746309040237,-450.0,0.00019586,2]
[359763135,1746309040247,-450.0,0.00019586,2]
[359763137,1746309040256,-450.0,0.00019586,2]
[359763140,1746309040270,-450.0,0.00019586,2]
[359763143,1746309040279,-518.39,0.00019586,2]
[359763145,1746309040288,-450.0,0.00019586,2]
[359763147,1746309040298,-763.55,0.00019586,2]
[359763149,1746309040307,-450.0,0.00019586,2]
[359763152,1746309040316,-450.0,0.00019586,2]
[359763153,1746309040326,-450.0,0.00019586,2]
[359763154,1746309040335,-450.0,0.00019586,2]
[359763155,1746309040345,-450.0,0.00019586,2]
[359763156,1746309040355,-763.67,0.00019586,2]
[359763157,1746309040364,-450.0,0.00019586,2]
[359763158,1746309040374,-538.74,0.00019586,2]
[359763159,1746309040383,-450.0,0.00019586,2]
[359763160,1746309040392,-450.0,0.00019586,2]
[359763161,1746309040401,-425.82370208,0.00019586,2]
[359763162,1746309040415,-24.17629792,0.00019586,2]
[359763163,1746309040424,-513.84,0.00019586,2]
[359763164,1746309040433,-450.0,0.00019586,2]
[359763165,1746309040442,-450.0,0.00019586,2]
[359763166,1746309040452,-450.0,0.00019586,2]
[359763167,1746309040461,-450.0,0.00019586,2]
[359763168,1746309040471,-450.0,0.00019586,2]
[359763169,1746309040480,-541.82,0.00019586,2]
[359763170,1746309040489,-563.01,0.00019586,2]
[359763171,1746309040498,-440.21881263,0.00019586,2]
[359763172,1746309040507,-450.0,0.00019586,2]
[359763173,1746309040517,-777.37,0.00019586,2]
[359763174,1746309040527,-450.0,0.00019586,2]
[359763175,1746309040536,-450.0,0.00019586,2]
[359763176,1746309040545,-450.0,0.00019586,2]
[359763177,1746309040555,-450.0,0.00019586,2]
[359763178,1746309040564,-450.0,0.00019586,2]
[359763179,1746309040574,-450.0,0.00019586,2]
[359763180,1746309040583,-450.0,0.00019586,2]
[359763181,1746309040592,-614.69,0.00019586,2]
[359763182,1746309040601,-755.74,0.00019586,2]
[359763183,1746309040610,-973.3,0.00019586,2]
[359763184,1746309040619,-453.21,0.00019586,2]
[359763185,1746309040628,-450.0,0.00019586,2]
[359763186,1746309040637,-560.56,0.00019586,2]
[359763187,1746309040647,-450.0,0.00019586,2]
[359763188,1746309040656,-450.0,0.00019586,2]
[359763189,1746309040665,-450.0,0.00019586,2]
[359763190,1746309040674,-1109.35,0.00019586,2]
[359763191,1746309040683,-450.0,0.00019586,2]
[359763192,1746309040692,-808.11,0.00019586,2]
[359763193,1746309040701,-481.85,0.00019586,2]
[359763194,1746309040710,-450.0,0.00019586,2]
[359763195,1746309040719,-450.0,0.00019586,2]
[359763196,1746309040729,-450.0,0.00019586,2]
[359763197,1746309040738,-450.0,0.00019586,2]
[359763198,1746309040747,-450.0,0.00019586,2]
[359763199,1746309040757,-450.0,0.00019586,2]
[359763200,1746309040766,-450.0,0.00019586,2]
[359763201,1746309040775,-450.0,0.00019586,2]
[359763202,1746309040785,-487.9,0.00019586,2]
[359763203,1746309040794,-450.0,0.00019586,2]
[359763204,1746309040803,-450.0,0.00019586,2]
[359763205,1746309040812,-655.72,0.00019586,2]
[359763206,1746309040821,-450.0,0.00019586,2]
[359763207,1746309040831,-294.29828647,0.00019586,2]
[359763208,1746309040840,-1907.66,0.00019586,2]
[359763209,1746309040849,-201.50525678,0.00019586,2]
[359763210,1746309040858,-161.16656125,0.00019586,2]
[359763211,1746309040867,-450.0,0.00019586,2]
[359763212,1746309040877,-450.0,0.00019586,2]
[359763213,1746309040886,-840.66,0.00019586,2]
[359763214,1746309040896,-517.9,0.00019586,2]
[359763215,1746309040905,-450.0,0.00019586,2]
[359763216,1746309040919,-1922.31,0.00019586,2]
[359763217,1746309040928,-450.0,0.00019586,2]
[359763218,1746309040938,-450.0,0.00019586,2]
[359763219,1746309040953,-450.0,0.00019586,2]
[359763220,1746309040962,-1870.17,0.00019586,2]
[359763221,1746309040971,-505.23,0.00019586,2]
[359763222,1746309040980,-450.0,0.00019586,2]
[359763223,1746309040989,-450.0,0.00019586,2]
[359763224,1746309040999,-1143.46,0.00019586,2]
[359763225,1746309041008,-450.0,0.00019586,2]
[359763226,1746309041018,-455.21,0.00019586,2]
[359763227,1746309041027,-450.0,0.00019586,2]
[359763228,1746309041037,-450.0,0.00019586,2]
[359763229,1746309041046,-450.0,0.00019586,2]
[359763230,1746309041055,-450.0,0.00019586,2]
[359763231,1746309041064,-450.0,0.00019586,2]
[359763232,1746309041073,-450.0,0.00019586,2]
[359763233,1746309041082,-208.05925861,0.00019587,2]
[359763234,1746309041091,-546.78947927,0.00019587,2]
[359763235,1746309041101,-450.0,0.00019587,2]
[359763236,1746309041110,-1000.0,0.000197,2]
[359763237,1746309041120,-2947.96254717,0.00019722,2]
[359763238,1746309041130,-1250.20217593,0.00019742,2]
[359763239,1746309041147,-1697.76037116,0.00019742,2]
[359763240,1746309041156,-172.28952718,0.00019758,2]
[359763241,1746309041166,-612.41888888,0.0001976,2]
[359763242,1746309041175,-213.55,0.00019761,2]
[359763243,1746309041184,-2947.96254709,0.00019762,2]
[359763244,1746309041194,-612.41888887,0.00019776,2]
[359763245,1746309041203,-2947.96254709,0.00019781,2]
[359763246,1746309041212,-612.41888887,0.00019791,2]
[359763247,1746309041221,-1033.2878942,0.00019799,2]
[359763248,1746309041230,-1347.0,0.000198,2]
[359763249,1746309041240,-2947.96254709,0.00019801,2]
[359763250,1746309041249,-612.41888887,0.00019807,2]
[359763251,1746309041259,-450.0,0.00019809,2]
[359763252,1746309041272,-450.0,0.00019809,2]
[359763253,1746309041281,-450.0,0.00019809,2]
[359763254,1746309041290,-4103.56,0.00019809,2]
[359763255,1746309041299,-450.0,0.00019809,2]
[359763256,1746309041309,-450.0,0.00019809,2]
[359763257,1746309041318,-581.04,0.00019809,2]
[359763258,1746309041328,-450.0,0.00019809,2]
[359763259,1746309041337,-1479.4,0.00019809,2]
[359763260,1746309041348,-450.0,0.00019809,2]
[359763261,1746309041357,-538.45,0.00019809,2]
[359763262,1746309041366,-3295.45,0.00019809,2]
[359763263,1746309041375,-450.0,0.00019809,2]
[359763264,1746309041385,-450.0,0.00019809,2]
[359763265,1746309041394,-2947.96254709,0.00019821,2]
[359763266,1746309041403,-612.41888887,0.00019822,2]
[359763267,1746309041412,-172.28952718,0.00019829,2]
[359763268,1746309041421,-612.41888887,0.00019838,2]
[359763269,1746309041431,-200.0,0.0001984,2]
[359763270,1746309041440,-2947.96254709,0.00019841,2]
[359763271,1746309041449,-612.41888887,0.00019853,2]
[359763272,1746309041460,-450.0,0.00019857,2]
[359763273,1746309041469,-450.0,0.00019857,2]
[359763274,1746309041478,-450.0,0.00019857,2]
[359763275,1746309041487,-450.0,0.00019857,2]
[359763276,1746309041496,-450.0,0.00019857,2]
[359763277,1746309041505,-885.27,0.00019857,2]
[359763278,1746309041514,-450.0,0.00019857,2]
[359763279,1746309041523,-465.8,0.00019857,2]
[359763280,1746309041533,-450.0,0.00019857,2]
[359763281,1746309041542,-1102.75,0.00019857,2]
[359763282,1746309041551,-450.0,0.00019857,2]
[359763283,1746309041560,-450.0,0.00019857,2]
[359763284,1746309041569,-450.0,0.00019857,2]
[359763285,1746309041578,-450.0,0.00019857,2]
[359763286,1746309041588,-450.0,0.00019857,2]
[359763287,1746309041596,-450.0,0.00019857,2]
[359763288,1746309041605,-3049.99,0.00019857,2]
[359763289,1746309041615,-450.0,0.00019857,2]
[359763290,1746309041624,-450.0,0.00019857,2]
[359763291,1746309041633,-717.41,0.00019857,2]
[359763292,1746309041642,-1711.18,0.00019857,2]
[359763293,1746309041651,-450.0,0.00019857,2]
[359763294,1746309041660,-487.52,0.00019857,2]
[359763295,1746309041670,-579.8,0.00019857,2]
[359763296,1746309041679,-450.0,0.00019857,2]
[359763297,1746309041688,-450.0,0.00019857,2]
[359763298,1746309041697,-1292.85,0.00019857,2]
[359763299,1746309041706,-483.03297201,0.00019857,2]
[359763300,1746309041715,-520.36,0.00019858,2]
[359763301,1746309041724,-450.0,0.00019858,2]
[359763302,1746309041733,-450.0,0.00019858,2]
[359763303,1746309041742,-450.0,0.00019858,2]
[359763304,1746309041751,-450.0,0.00019858,2]
[359763305,1746309041760,-450.0,0.00019858,2]
[359763306,1746309041769,-450.0,0.00019858,2]
[359763307,1746309041778,-450.0,0.00019858,2]
[359763308,1746309041788,-538.53,0.00019858,2]
[359763309,1746309041797,-782.75,0.00019858,2]
[359763310,1746309041806,-450.0,0.00019858,2]
[359763311,1746309041815,-572.98,0.00019858,2]
[359763312,1746309041824,-450.0,0.00019858,2]
[359763313,1746309041833,-450.0,0.00019858,2]
[359763314,1746309041842,-450.0,0.00019858,2]
[359763315,1746309041851,-450.0,0.00019858,2]
[359763316,1746309041860,-450.0,0.00019858,2]
[359763317,1746309041869,-450.0,0.00019858,2]
[359763318,1746309041879,-450.0,0.00019858,2]
[359763319,1746309041888,-450.0,0.00019858,2]
[359763320,1746309041897,-512.5426036,0.00019858,2]
[359763321,1746309041906,-450.0,0.00019858,2]
[359763322,1746309041915,-450.0,0.00019858,2]
[359763323,1746309041925,-463.24,0.00019858,2]
[359763324,1746309041935,-209.57597756,0.00019858,2]
[359763325,1746309041946,-452.15,0.00019858,2]
[359763326,1746309041955,-450.0,0.00019858,2]
[359763327,1746309041964,-450.0,0.00019858,2]
[359763328,1746309041973,-450.0,0.00019858,2]
[359763329,1746309041982,-1090.34,0.00019858,2]
[359763330,1746309041991,-450.0,0.00019858,2]
[359763331,1746309042000,-450.0,0.00019858,2]
[359763332,1746309042009,-450.0,0.00019858,2]
[359763333,1746309042018,-450.0,0.00019858,2]
[359763334,1746309042027,-706.39,0.00019858,2]
[359763335,1746309042036,-450.0,0.00019858,2]
[359763336,1746309042045,-450.0,0.00019858,2]
[359763337,1746309042055,-4062.61,0.00019858,2]
[359763338,1746309042064,-450.0,0.00019858,2]
[359763339,1746309042073,-450.0,0.00019858,2]
[359763340,1746309042082,-5146.36,0.00019858,2]
[359763341,1746309042091,-999.0,0.00019858,2]
[359763342,1746309042100,-486.84,0.00019858,2]
[359763343,1746309042109,-3273.05,0.00019858,2]
[359763344,1746309042118,-495.16,0.00019858,2]
[359763345,1746309042127,-450.0,0.00019858,2]
[359763346,1746309042137,-2006.59,0.00019858,2]
[359763347,1746309042146,-3495.55,0.00019858,2]
[359763348,1746309042156,-450.0,0.00019858,2]
[359763349,1746309042164,-450.0,0.00019858,2]
[359763350,1746309042174,-73784.41,0.00019858,2]
[359763351,1746309042183,-509.56,0.00019858,2]
[359763352,1746309042192,-450.0,0.00019858,2]
[359763353,1746309042201,-1253.44,0.00019858,2]
[359763354,1746309042210,-450.0,0.00019858,2]
[359763355,1746309042219,-450.0,0.00019858,2]
[359763356,1746309042227,-450.0,0.00019858,2]
[359763357,1746309042237,-450.0,0.00019858,2]
[359763358,1746309042246,-3186.17,0.00019858,2]
[359763359,1746309042254,-15694.05,0.00019858,2]
[359763360,1746309042263,-450.0,0.00019858,2]
[359763361,1746309042276,-520.61,0.00019858,2]
[359763362,1746309042286,-450.0,0.00019858,2]
[359763363,1746309042295,-1079.17,0.00019858,2]
[359763364,1746309042304,-450.0,0.00019858,2]
[359763365,1746309042315,-9818.28,0.00019858,2]
[359763366,1746309042324,-450.0,0.00019858,2]
[359763367,1746309042333,-1331.96,0.00019858,2]
[359763368,1746309042343,-450.0,0.00019858,2]
[359763369,1746309042353,-695.91,0.00019858,2]
[359763370,1746309042362,-450.0,0.00019858,2]
[359763371,1746309042371,-450.0,0.00019858,2]
[359763372,1746309042380,-450.0,0.00019858,2]
[359763373,1746309042390,-450.0,0.00019858,2]
[359763374,1746309042400,-559.28,0.00019858,2]
[359763375,1746309042409,-450.0,0.00019858,2]
[359763376,1746309042418,-450.0,0.00019858,2]
[359763377,1746309042427,-456.64,0.00019858,2]
[359763378,1746309042436,-450.0,0.00019858,2]
[359763379,1746309042444,-996.76,0.00019858,2]
[359763380,1746309042453,-450.0,0.00019858,2]
[359763381,1746309042463,-160.59965828,0.00019858,2]
[359763382,1746309042472,-489.21,0.00019858,2]
[359763383,1746309042481,-450.0,0.00019858,2]
[359763384,1746309042491,-695.81,0.00019858,2]
[359763385,1746309042500,-450.0,0.00019858,2]
[359763387,1746309042509,-450.0,0.00019858,2]
[359763388,1746309042518,-450.0,0.00019858,2]
[359763390,1746309042527,-450.0,0.00019858,2]
[359763393,1746309042536,-450.0,0.00019858,2]
[359763395,1746309042545,-450.0,0.00019858,2]
[359763396,1746309042554,-468.07,0.00019858,2]
[359763399,1746309042563,-450.0,0.00019858,2]
[359763401,1746309042573,-1237.62,0.00019858,2]
[359763404,1746309042583,-450.0,0.00019858,2]
[359763405,1746309042591,-450.0,0.00019858,2]
[359763407,1746309042601,-154.12705526,0.00019858,2]
[359763409,1746309042610,-488.42,0.00019858,2]
[359763410,1746309042619,-485.81,0.00019858,2]
[359763412,1746309042628,-450.0,0.00019859,2]
[359763413,1746309042637,-825.06,0.00019859,2]
[359763415,1746309042646,-450.0,0.00019859,2]
[359763417,1746309042655,-450.0,0.00019859,2]
[359763419,1746309042664,-490.48,0.00019859,2]
[359763421,1746309042673,-450.0,0.00019859,2]
[359763422,1746309042683,-450.0,0.00019859,2]
[359763423,1746309042692,-450.0,0.00019859,2]
[359763424,1746309042701,-450.0,0.00019859,2]
[359763425,1746309042710,-519.32,0.00019859,2]
[359763426,1746309042721,-450.0,0.00019859,2]
[359763427,1746309042730,-450.0,0.00019859,2]
[359763428,1746309042739,-450.0,0.00019859,2]
[359763429,1746309042747,-450.0,0.00019859,2]
[359763430,1746309042756,-450.0,0.00019859,2]
[359763431,1746309042765,-450.0,0.00019859,2]
[359763432,1746309042774,-450.0,0.00019859,2]
[359763433,1746309042783,-450.0,0.00019859,2]
[359763434,1746309042792,-450.0,0.00019859,2]
[359763435,1746309042800,-710.49,0.00019859,2]
[359763436,1746309042810,-450.0,0.00019859,2]
[359763437,1746309042819,-450.0,0.00019859,2]
[359763438,1746309042827,-3075.82,0.00019859,2]
[359763439,1746309042836,-450.0,0.00019859,2]
[359763440,1746309042846,-450.0,0.00019859,2]
[359763441,1746309042855,-2245.56,0.00019859,2]
[359763442,1746309042864,-450.0,0.00019859,2]
[359763443,1746309042873,-450.0,0.00019859,2]
[359763444,1746309042882,-500.58,0.00019859,2]
[359763445,1746309042891,-670.92,0.00019859,2]
[359763446,1746309042900,-450.0,0.00019859,2]
[359763447,1746309042909,-450.0,0.0001986,2]
[359763448,1746309042918,-450.0,0.0001986,2]
[359763449,1746309042927,-612.39,0.0001986,2]
[359763450,1746309042936,-456.89,0.0001986,2]
[359763451,1746309042945,-450.0,0.0001986,2]
[359763452,1746309042954,-458.93,0.0001986,2]
[359763453,1746309042963,-450.0,0.0001986,2]
[359763454,1746309042972,-450.0,0.0001986,2]
[359763455,1746309042981,-450.0,0.0001986,2]
[359763456,1746309042991,-362.7993644,0.0001986,2]
[359763457,1746309043000,-464.75412095,0.0001986,2]
[359763458,1746309043009,-450.0,0.0001986,2]
[359763459,1746309043018,-450.0,0.0001986,2]
[359763460,1746309043027,-450.0,0.0001986,2]
[359763461,1746309043036,-450.0,0.0001986,2]
[359763462,1746309043045,-450.0,0.0001986,2]
[359763464,1746309043054,-450.0,0.0001986,2]
[359763465,1746309043064,-518.39,0.0001986,2]
[359763466,1746309043073,-450.0,0.0001986,2]
[359763467,1746309043082,-763.55,0.0001986,2]
[359763468,1746309043092,-450.0,0.0001986,2]
[359763469,1746309043101,-335.06391959,0.0001986,2]
[359763470,1746309043110,-450.0,0.0001986,2]
[359763471,1746309043119,-450.0,0.0001986,2]
[359763472,1746309043129,-450.0,0.0001986,2]
[359763473,1746309043138,-763.67,0.0001986,2]
[359763474,1746309043147,-450.0,0.0001986,2]
[359763475,1746309043156,-538.74,0.0001986,2]
[359763476,1746309043166,-450.0,0.0001986,2]
[359763477,1746309043176,-450.0,0.0001986,2]
[359763478,1746309043185,-450.0,0.0001986,2]
[359763479,1746309043194,-513.84,0.0001986,2]
[359763480,1746309043203,-450.0,0.0001986,2]
[359763481,1746309043212,-450.0,0.0001986,2]
[359763482,1746309043221,-450.0,0.0001986,2]
[359763483,1746309043231,-450.0,0.0001986,2]
[359763484,1746309043240,-450.0,0.0001986,2]
[359763485,1746309043249,-541.82,0.0001986,2]
[359763486,1746309043259,-563.01,0.0001986,2]
[359763487,1746309043272,-450.0,0.0001986,2]
[359763488,1746309043282,-777.37,0.0001986,2]
[359763489,1746309043291,-450.0,0.0001986,2]
[359763490,1746309043300,-450.0,0.0001986,2]
[359763491,1746309043309,-450.0,0.0001986,2]
[359763492,1746309043319,-450.0,0.0001986,2]
[359763493,1746309043329,-450.0,0.0001986,2]
[359763494,1746309043338,-450.0,0.0001986,2]
[359763495,1746309043347,-450.0,0.0001986,2]
[359763496,1746309043357,-614.69,0.0001986,2]
[359763497,1746309043366,-755.74,0.0001986,2]
[359763498,1746309043375,-973.3,0.0001986,2]
[359763499,1746309043384,-453.21,0.0001986,2]
[359763500,1746309043393,-450.0,0.0001986,2]
[359763501,1746309043402,-560.56,0.0001986,2]
[359763502,1746309043410,-450.0,0.0001986,2]
[359763503,1746309043420,-450.0,0.0001986,2]
[359763504,1746309043430,-450.0,0.0001986,2]
[359763505,1746309043439,-1109.35,0.0001986,2]
[359763506,1746309043448,-450.0,0.0001986,2]
[359763507,1746309043457,-808.11,0.0001986,2]
[359763508,1746309043466,-481.85,0.0001986,2]
[359763509,1746309043474,-450.0,0.0001986,2]
[359763510,1746309043484,-450.0,0.0001986,2]
[359763511,1746309043493,-450.0,0.0001986,2]
[359763512,1746309043501,-450.0,0.0001986,2]
[359763513,1746309043510,-523.18256869,0.0001986,2]
[359763514,1746309043519,-450.0,0.0001986,2]
[359763515,1746309043528,-450.0,0.0001986,2]
[359763516,1746309043536,-450.0,0.0001986,2]
[359763517,1746309043545,-487.9,0.0001986,2]
[359763518,1746309043553,-450.0,0.0001986,2]
[359763519,1746309043562,-450.0,0.0001986,2]
[359763520,1746309043571,-655.72,0.0001986,2]
[359763521,1746309043580,-450.0,0.0001986,2]
[359763522,1746309043588,-1907.66,0.0001986,2]
[359763523,1746309043597,-450.0,0.0001986,2]
[359763524,1746309043606,-450.0,0.0001986,2]
[359763525,1746309043615,-840.66,0.0001986,2]
[359763526,1746309043624,-517.9,0.0001986,2]
[359763527,1746309043632,-450.0,0.0001986,2]
[359763528,1746309043641,-1922.31,0.0001986,2]
[359763529,1746309043650,-450.0,0.0001986,2]
[359763530,1746309043658,-450.0,0.0001986,2]
[359763531,1746309043667,-450.0,0.0001986,2]
[359763532,1746309043676,-1870.17,0.0001986,2]
[359763533,1746309043685,-505.23,0.0001986,2]
[359763534,1746309043694,-450.0,0.0001986,2]
[359763535,1746309043702,-450.0,0.0001986,2]
[359763536,1746309043711,-1143.46,0.0001986,2]
[359763537,1746309043720,-450.0,0.0001986,2]
[359763538,1746309043729,-455.21,0.0001986,2]
[359763539,1746309043737,-450.0,0.0001986,2]
[359763540,1746309043746,-450.0,0.0001986,2]
[359763541,1746309043755,-450.0,0.0001986,2]
[359763542,1746309043764,-450.0,0.0001986,2]
[359763543,1746309043773,-450.0,0.0001986,2]
[359763544,1746309043782,-450.0,0.0001986,2]
[359763545,1746309043792,-2947.96254709,0.0001986,2]
[359763546,1746309043801,-500.0,0.00019865,2]
[359763547,1746309043810,-212.70706355,0.00019865,2]
[359763548,1746309043819,-500.0,0.00019865,2]
[359763549,1746309043828,-150.0,0.00019865,2]
[359763550,1746309043837,-500.0,0.00019865,2]
[359763551,1746309043846,-500.0,0.00019865,2]
[359763552,1746309043854,-500.0,0.00019865,2]
[359763553,1746309043864,-150.0,0.00019865,2]
[359763554,1746309043873,-218.45761307,0.00019865,2]
[359763555,1746309043883,-150.0,0.00019865,2]
[359763556,1746309043892,-150.0,0.00019865,2]
[359763557,1746309044028,-612.41888887,0.00019869,2]
[359763558,1746309044042,-500.0,0.00019873,2]
[359763559,1746309044051,-500.0,0.00019873,2]
[359763560,1746309044061,-500.0,0.00019873,2]
[359763561,1746309044070,-500.0,0.00019873,2]
[359763562,1746309044079,-500.0,0.00019873,2]
[359763563,1746309044089,-2947.96254709,0.0001988,2]
[359763564,1746309044098,-612.41888887,0.00019884,2]
[359763565,1746309044108,-411.79451988,0.000199,2]
[359763566,1746309044117,-172.28952718,0.000199,2]
[359763567,1746309044127,-5038.24029571,0.000199,2]
[359763568,1746309044136,-2947.96254709,0.000199,2]
[359763569,1746309044145,-612.41888887,0.000199,2]
[359763570,1746309044155,-199.16598171,0.000199,3]
[359763571,1746309044164,-3022.5563169,0.000199,2]
[359763572,1746309044174,-996.9727933,0.000199,2]
[359763573,1746309044183,-295.10784008,0.000199,2]
[359763574,1746309044193,-4443.638288,0.000199,2]
[359763575,1746309044202,-2277.999,0.00019949,2]
[359763576,1746309044211,-168.088,0.00019949,2]
[359763577,1746309044221,-411.79451982,0.00019968,2]
[359763578,1746309044230,-500.0,0.00019973,2]
[359763579,1746309044240,-500.0,0.00019973,2]
[359763580,1746309044250,-500.0,0.00019973,2]
[359763581,1746309044259,-500.0,0.00019973,2]
[359763582,1746309044271,-500.0,0.00019973,2]
[359763583,1746309044281,-504.7578118,0.00019973,2]
[359763584,1746309044291,-461.62,0.00019985,2]
[359763585,1746309044301,-221.8421518,0.00019985,2]
[359763586,1746309044312,-222.00716693,0.00019985,2]
[359763587,1746309044321,-270.04268955,0.00019985,2]
[359763588,1746309044331,-194.43883954,0.00019985,2]
[359763589,1746309044340,-500.0,0.00019985,2]
[359763590,1746309044351,-500.0,0.00019985,2]
[359763591,1746309044362,-500.0,0.00019985,2]
[359763592,1746309044371,-500.0,0.00019985,2]
[359763593,1746309044381,-500.0,0.00019985,2]
[359763594,1746309044391,-500.0,0.00019985,2]
[359763595,1746309044400,-500.0,0.00019985,2]
[359763596,1746309044410,-500.0,0.00019985,2]
[359763597,1746309044420,-500.0,0.00019985,2]
[359763598,1746309044429,-451.58626491,0.00019985,2]
[359763599,1746309044440,-6670.7461802,0.00019986,2]
[359763600,1746309044449,-29867.4735214,0.00019986,2]
[359763601,1746309044458,-338453.2576582,0.00019986,2]
[359763602,1746309044468,-3475.2017003,0.00019986,2]
[359763603,1746309044477,-25546.0348852,0.00019986,2]
[359763604,1746309044487,-500.0,0.00019999,2]
[359763605,1746309044497,-500.0,0.00019999,2]
[359763606,1746309044507,-300.0,0.00019999,2]
[359763607,1746309044517,-670.50530287,0.00019999,2]
[359763608,1746309044527,-366.20032378,0.00019999,2]
[359763609,1746309044537,-300.0,0.00019999,2]
[359763610,1746309044547,-1199.0,0.00019999,2]
[359763611,1746309044556,-1257.55061094,0.0002,2]
[359763612,1746309044566,-2541367.80517971,0.0002,2]
[359763613,1746309044865,-271.0121133,0.0002,2]
[359763614,1746309044903,-22012.19748137,0.0002,2]
[359763615,1746309045127,-302.58315197,0.0002,2]
[359763620,1746309045629,-2855.59386058,0.0002,2]
[359763621,1746309045701,-6152.0711299,0.0002,2]
[359763622,1746309045758,-401.7519,0.0002,2]
[359763623,1746309045871,-2946.94609695,0.0002,2]
[359763624,1746309045927,-14527.46007443,0.0002,2]
[359763629,1746309093471,155.84,0.00027425,30]
[359763630,1746309128010,302.0,0.00032877,60]
[359763631,1746309140414,160.0,0.000294,30]
[359763632,1746309173192,1000.0,0.00019033,2]
[359763634,1746309229589,2858.18136557,0.00019033,2]
[359763635,1746309229611,7460.26863443,0.00019033,2]
[359763637,1746309236129,290.904568,0.00019487,2]
[359763638,1746309251673,521.33,0.00017102,2]
[359763639,1746309252055,521.33,0.00019366,2]
[359763641,1746309266398,726.06,0.00019031,2]